bitfinex/quotes_BTCUSD_20250530
["timestamp","ask_amount","ask_price","bid_price","bid_amount"]
[1748619986274,0.22317498,105680.0,105670.0,0.10869246]
[1748619986735,0.23897498,105680.0,105670.0,0.11069246]
[1748619986939,0.23897498,105680.0,105670.0,0.00208889]
[1748619987147,0.23897498,105680.0,105670.0,0.01765239]
[1748619987358,0.23897498,105680.0,105670.0,0.00108889]
[1748619987569,0.22317498,105680.0,105670.0,0.01965145]
[1748619987792,0.22317498,105680.0,105670.0,0.01865136]
[1748619988001,0.22317498,105680.0,105670.0,0.01865047]
[1748619988204,0.22317498,105680.0,105670.0,8.889e-05]
[1748619991184,0.20817498,105680.0,105670.0,8.889e-05]
[1748619991598,0.20817498,105680.0,105670.0,0.09114284]
[1748619993903,0.20817498,105680.0,105670.0,0.10870702]
[1748619994111,0.22327498,105680.0,105670.0,0.09114284]
[1748619995400,0.22327498,105680.0,105670.0,0.10870999]
[1748619995856,0.22327498,105680.0,105670.0,0.10871001]
[1748619996068,0.22327498,105680.0,105670.0,0.10870965]
[1748619996275,0.20817498,105680.0,105670.0,0.10871067]
[1748619996690,0.20817498,105680.0,105670.0,0.10871301]
[1748619996923,0.20817498,105680.0,105670.0,0.10871319]
[1748619997551,0.22317498,105680.0,105670.0,0.10871319]
[1748619998298,0.20817498,105680.0,105670.0,0.10871609]
[1748619998510,0.20817498,105680.0,105670.0,0.34709124]
[1748619998721,0.20817498,105680.0,105670.0,1.00373205]
[1748619998722,0.01892442,105680.0,105670.0,1.00373205]
[1748619998936,0.20817498,105680.0,105670.0,1.01319511]
[1748619999352,0.20817498,105680.0,105670.0,1.01319142]
[1748619999580,0.20817498,105680.0,105670.0,0.79553352]
[1748619999789,0.18925056,105680.0,105670.0,0.79553352]
[1748620000002,0.18925056,105680.0,105670.0,0.79553525]
[1748620000203,0.18925056,105680.0,105670.0,0.90553546]
[1748620000327,0.18925056,105680.0,105670.0,0.90553542]
[1748620000524,0.18925056,105680.0,105670.0,0.88796369]
[1748620000769,0.14925056,105680.0,105670.0,0.90553486]
[1748620001408,0.14925056,105680.0,105670.0,0.90553503]
[1748620001810,0.14925056,105680.0,105670.0,0.88796369]
[1748620002014,0.14925056,105680.0,105670.0,0.88973587]
[1748620002213,0.14925056,105680.0,105670.0,0.88973523]
[1748620002386,0.14925056,105680.0,105670.0,0.57208369]
[1748620002590,0.14925056,105680.0,105670.0,0.58965709]
[1748620003402,0.14925056,105680.0,105670.0,0.58965589]
[1748620003601,0.14925056,105680.0,105670.0,0.58965552]
[1748620003850,0.14925056,105680.0,105670.0,0.5896557]
[1748620004025,0.14925056,105680.0,105670.0,0.57208369]
[1748620004251,0.14925056,105680.0,105670.0,0.5896535]
[1748620004440,0.14925056,105680.0,105670.0,0.5732535]
[1748620005251,0.14925056,105680.0,105670.0,0.5896535]
[1748620005534,0.14925056,105680.0,105670.0,0.60555645]
[1748620005744,0.14925056,105680.0,105670.0,0.60555682]
[1748620005987,0.14925056,105680.0,105670.0,0.60555626]
[1748620006425,0.14925056,105680.0,105670.0,0.60555545]
[1748620006907,0.14925056,105680.0,105670.0,0.58965545]
[1748620007338,0.14925056,105680.0,105670.0,0.57325545]
[1748620007782,0.14925056,105680.0,105670.0,0.60544621]
[1748620008017,0.10925056,105680.0,105670.0,0.60544621]
[1748620008241,0.10925056,105680.0,105670.0,0.6054475]
[1748620008707,0.10925056,105680.0,105670.0,0.60544724]
[1748620008928,0.10925056,105680.0,105670.0,0.60544727]
[1748620009141,0.10925056,105680.0,105670.0,0.60545404]
[1748620009404,0.10925056,105680.0,105670.0,0.58788369]
[1748620009621,0.10925056,105680.0,105670.0,0.60545404]
[1748620010053,0.10925056,105680.0,105670.0,0.57325597]
[1748620010497,0.10925056,105680.0,105670.0,0.55568369]
[1748620010729,0.10925056,105680.0,105670.0,0.57326602]
[1748620010963,0.10925056,105680.0,105670.0,0.60486602]
[1748620011389,0.10925056,105680.0,105670.0,0.60486566]
[1748620011596,0.00946234,105680.0,105670.0,1.36100776]
[1748620011797,0.01892442,105680.0,105670.0,1.36100776]
[1748620011932,0.19871008,105690.0,105680.0,0.57181308]
[1748620012145,0.19871008,105690.0,105680.0,1.51739252]
[1748620012362,0.19871008,105690.0,105680.0,1.51739316]
[1748620012570,0.19871008,105690.0,105680.0,1.51739286]
[1748620012780,0.19871008,105690.0,105680.0,1.51739277]
[1748620013138,0.19871008,105690.0,105680.0,1.32991413]
[1748620013419,0.18924881,105690.0,105680.0,0.79292927]
[1748620014048,0.18924881,105690.0,105680.0,0.79293071]
[1748620014463,0.19024881,105690.0,105680.0,0.79293263]
[1748620014670,0.19024881,105690.0,105680.0,0.78169875]
[1748620015080,0.15024881,105690.0,105680.0,0.79105632]
[1748620015457,0.15024881,105690.0,105680.0,0.79105341]
[1748620015663,0.15024881,105690.0,105680.0,0.79105335]
[1748620015864,0.15024881,105690.0,105680.0,0.79105347]
[1748620016086,0.15024881,105690.0,105680.0,0.79105345]
[1748620016285,0.15024881,105690.0,105680.0,0.77347152]
[1748620016489,0.15024881,105690.0,105680.0,1.31045597]
[1748620016656,0.15024881,105690.0,105680.0,1.32803512]
[1748620017287,0.15024881,105690.0,105680.0,0.79105067]
[1748620017748,0.15024881,105690.0,105680.0,0.79104987]
[1748620017949,0.15024881,105690.0,105680.0,0.79104991]
[1748620018496,0.15024881,105690.0,105680.0,0.88585227]
[1748620018706,0.15024881,105690.0,105680.0,0.88585222]
[1748620019297,0.15024881,105690.0,105680.0,0.88585235]
[1748620020283,0.15024881,105690.0,105680.0,0.88585582]
[1748620020488,0.15024881,105690.0,105680.0,0.88586083]
[1748620021035,0.15024881,105690.0,105680.0,0.75788083]
[1748620021195,0.15024881,105690.0,105680.0,0.77242302]
[1748620021776,0.15024881,105690.0,105680.0,0.77242744]
[1748620021904,0.15024881,105690.0,105680.0,0.78782744]
[1748620022754,0.15024881,105690.0,105680.0,0.78782822]
[1748620023165,0.11024881,105690.0,105680.0,0.78782828]
[1748620023743,0.11024881,105690.0,105680.0,0.77242838]
[1748620023937,0.11024881,105690.0,105680.0,0.75483237]
[1748620024148,0.11024881,105690.0,105680.0,0.77242558]
[1748620024590,0.11024881,105690.0,105680.0,0.77238558]
[1748620024803,0.11024881,105690.0,105680.0,0.78878558]
[1748620025009,0.11024881,105690.0,105680.0,0.78878443]
[1748620025435,0.11024881,105690.0,105680.0,0.78878479]
[1748620025646,0.11024881,105690.0,105680.0,0.80388479]
[1748620025863,0.11024881,105690.0,105680.0,1.34086924]
[1748620026488,0.11024881,105690.0,105680.0,1.34087277]
[1748620026728,0.11024881,105690.0,105680.0,1.35210686]
[1748620027297,0.11024881,105690.0,105680.0,0.81512241]
[1748620027731,0.11024881,105690.0,105680.0,0.81512734]
[1748620027908,0.11024881,105690.0,105680.0,0.81512754]
[1748620028103,0.11024881,105690.0,105680.0,0.79752646]
[1748620028392,0.11024881,105690.0,105680.0,0.81512736]
[1748620028630,0.11024881,105690.0,105680.0,0.48378736]
[1748620028853,0.12674881,105690.0,105680.0,0.46618646]
[1748620029022,0.12674881,105690.0,105680.0,0.48379634]
[1748620029251,0.11024881,105690.0,105680.0,0.48379663]
[1748620029398,0.11024881,105690.0,105680.0,0.49909727]
[1748620029600,0.11024881,105690.0,105680.0,0.48148646]
[1748620029805,0.11024881,105690.0,105680.0,0.49909733]
[1748620030001,0.11024881,105690.0,105680.0,0.49909735]
[1748620030564,0.07024881,105690.0,105680.0,0.49909735]
[1748620030745,0.08574881,105690.0,105680.0,0.48379735]
[1748620030971,0.08574881,105690.0,105680.0,0.1292565]
[1748620031205,0.10094881,105690.0,105680.0,0.11164561]
[1748620031420,0.40070881,105690.0,105680.0,0.02697355]
[1748620031621,0.1987129,105680.0,105670.0,0.01132298]
[1748620031832,0.2297129,105680.0,105670.0,0.11999614]
[1748620032067,0.2297129,105680.0,105670.0,0.10876205]
[1748620032265,0.2297129,105680.0,105670.0,0.10875848]
[1748620032613,0.2145129,105680.0,105670.0,0.09114284]
[1748620035827,0.2145129,105680.0,105670.0,0.10043177]
[1748620036479,0.2145129,105680.0,105670.0,0.11553177]
[1748620036480,0.1987129,105680.0,105670.0,0.11553177]
[1748620036714,0.1987129,105680.0,105670.0,0.3378067]
[1748620036942,0.1987129,105680.0,105670.0,0.44544109]
[1748620037173,0.20817533,105680.0,105670.0,1.44549499]
[1748620037412,0.19871281,105680.0,105670.0,1.42656896]
[1748620037646,0.17763758,105680.0,105670.0,1.44726638]
[1748620037869,0.17763767,105680.0,105670.0,1.44726638]
[1748620038118,0.17763767,105680.0,105670.0,1.45672962]
[1748620038324,0.17763767,105680.0,105670.0,1.44726638]
[1748620039555,0.17763767,105680.0,105670.0,0.70208671]
[1748620039798,0.16817533,105680.0,105670.0,0.70208671]
[1748620041382,0.16817533,105680.0,105670.0,0.89135518]
[1748620041820,0.16817533,105680.0,105670.0,0.90081851]
[1748620042030,0.18710002,105680.0,105670.0,0.91028175]
[1748620042453,0.17763785,105680.0,105670.0,0.91028175]
[1748620042875,0.19871273,105680.0,105670.0,1.46603261]
[1748620043094,0.22709958,105680.0,105670.0,1.47549549]
[1748620043298,0.22709958,105680.0,105670.0,0.92910778]
[1748620043732,0.22709958,105680.0,105670.0,0.94406328]
[1748620044218,0.21763768,105680.0,105670.0,0.94406328]
[1748620044427,0.21763768,105680.0,105670.0,0.93460031]
[1748620044639,0.16817551,105680.0,105670.0,0.92513725]
[1748620044874,0.15871308,105680.0,105670.0,1.21535401]
[1748620045719,0.15871308,105680.0,105670.0,1.20039851]
[1748620046351,0.14925056,105680.0,105670.0,1.00166671]
[1748620046574,0.14925056,105680.0,105670.0,0.98636671]
[1748620046777,0.14925056,105680.0,105670.0,1.17563518]
[1748620046989,0.14925056,105680.0,105670.0,0.98636671]
[1748620047212,0.14925056,105680.0,105670.0,0.87584671]
[1748620047428,0.14729056,105680.0,105670.0,0.57620671]
[1748620047647,0.14729056,105680.0,105670.0,0.60640671]
[1748620048066,0.14729056,105680.0,105670.0,0.81460175]
[1748620048286,0.00946181,105680.0,105670.0,1.46506964]
[1748620048499,0.08817162,105690.0,105680.0,0.55763732]
[1748620048702,0.09763325,105690.0,105680.0,1.60063411]
[1748620048940,0.09763325,105690.0,105680.0,1.6268237]
[1748620049390,0.09763325,105690.0,105680.0,1.61736145]
[1748620049623,0.07871044,105690.0,105680.0,0.56688354]
[1748620049874,0.07871044,105690.0,105680.0,0.85152354]
[1748620050108,0.07871044,105690.0,105680.0,0.45724354]
[1748620050365,0.07871044,105690.0,105680.0,0.77242439]
[1748620050805,0.07871044,105690.0,105680.0,0.45882889]
[1748620051050,0.07871044,105690.0,105680.0,0.44428804]
[1748620051284,0.11051044,105690.0,105680.0,0.10428804]
[1748620051497,0.11051044,105690.0,105680.0,0.01323409]
[1748620051713,0.41011044,105690.0,105680.0,0.002]
[1748620052375,0.41011044,105690.0,105680.0,0.001]
[1748620052590,0.11051044,105690.0,105680.0,0.001]
[1748620053028,0.1987129,105680.0,105670.0,0.47391867]
[1748620053246,0.2146129,105680.0,105670.0,0.22497262]
[1748620053910,0.2146129,105680.0,105670.0,0.24258864]
[1748620054361,0.2146129,105680.0,105670.0,0.24458864]
[1748620055049,0.2146129,105680.0,105670.0,0.23004779]
[1748620055933,0.2146129,105680.0,105670.0,0.23004755]
[1748620056143,0.2146129,105680.0,105670.0,0.21243177]
[1748620056353,0.2146129,105680.0,105670.0,0.23004823]
[1748620057266,0.2146129,105680.0,105670.0,0.23004861]
[1748620057729,0.2146129,105680.0,105670.0,0.23004809]
[1748620057981,0.2146129,105680.0,105670.0,0.21243177]
[1748620058213,0.2146129,105680.0,105670.0,0.23004871]
[1748620058697,0.1746129,105680.0,105670.0,0.23004921]
[1748620058944,0.20057524,105680.0,105670.0,0.23004921]
[1748620059174,0.20057524,105680.0,105670.0,0.13899526]
[1748620059404,0.20057524,105680.0,105670.0,0.02899723]
[1748620059639,0.20057524,105680.0,105670.0,0.0289988]
[1748620059875,0.20057524,105680.0,105670.0,0.01137782]
[1748620060122,0.20057524,105680.0,105670.0,0.00937782]
[1748620061998,0.20057524,105680.0,105670.0,8.889e-05]
[1748620063671,0.29509524,105680.0,105670.0,8.889e-05]
[1748620063893,0.72614919,105680.0,105670.0,8.889e-05]
[1748620066072,0.72814919,105680.0,105670.0,8.889e-05]
[1748620074007,0.75655319,105680.0,105670.0,8.889e-05]
[1748620077493,1.05603319,105680.0,105670.0,8.889e-05]
[1748620078541,0.72814919,105680.0,105670.0,8.889e-05]
[1748620078802,1.02758919,105680.0,105670.0,8.889e-05]
[1748620079664,0.72814919,105680.0,105670.0,8.889e-05]
[1748620079826,0.63362919,105680.0,105670.0,8.889e-05]
[1748620080030,0.38814919,105680.0,105670.0,8.889e-05]
[1748620080232,0.26469524,105680.0,105670.0,8.889e-05]
[1748620082936,0.60469524,105680.0,105670.0,8.889e-05]
[1748620084469,0.61979524,105680.0,105670.0,8.889e-05]
[1748620085817,0.60469524,105680.0,105670.0,8.889e-05]
[1748620087089,0.62129524,105680.0,105670.0,8.889e-05]
[1748620087304,0.52677524,105680.0,105670.0,8.889e-05]
[1748620087520,0.58065524,105680.0,105670.0,8.889e-05]
[1748620088151,0.18677524,105680.0,105670.0,8.889e-05]
[1748620088361,0.58065524,105680.0,105670.0,8.889e-05]
[1748620089001,0.18677524,105680.0,105670.0,8.889e-05]
[1748620089220,0.58065524,105680.0,105670.0,8.889e-05]
[1748620090180,0.92065524,105680.0,105670.0,8.889e-05]
[1748620093336,0.90385524,105680.0,105670.0,8.889e-05]
[1748620093554,0.90385524,105680.0,105670.0,0.01538889]
[1748620094221,0.91955524,105680.0,105670.0,8.889e-05]
[1748620094430,0.93515524,105680.0,105670.0,8.889e-05]
[1748620097176,0.91955524,105680.0,105670.0,8.889e-05]
[1748620097393,0.90381524,105680.0,105670.0,8.889e-05]
[1748620097617,0.90381524,105680.0,105670.0,0.01518889]
[1748620097837,0.60453524,105680.0,105670.0,0.01518889]
[1748620098059,0.90377524,105680.0,105670.0,0.03168889]
[1748620100121,0.51017524,105680.0,105670.0,0.03168889]
[1748620100354,0.17017524,105680.0,105670.0,0.049269]
[1748620100582,0.17017524,105680.0,105670.0,0.04926522]
[1748620101262,0.17017524,105680.0,105670.0,0.04926385]
[1748620101496,0.17017524,105680.0,105670.0,0.03168889]
[1748620101713,0.17017524,105680.0,105670.0,0.04926062]
[1748620101941,0.17017524,105680.0,105670.0,0.04926069]
[1748620102189,0.17017524,105680.0,105670.0,0.03168889]
[1748620102416,0.17017524,105680.0,105670.0,0.04926186]
[1748620102896,0.17017524,105680.0,105670.0,0.04925884]
[1748620103303,0.17017524,105680.0,105670.0,0.04926017]
[1748620103509,0.17017524,105680.0,105670.0,0.04926243]
[1748620104345,0.17017524,105680.0,105670.0,0.04926418]
[1748620104969,0.17017524,105680.0,105670.0,0.0492648]
[1748620105177,0.17017524,105680.0,105670.0,0.04926525]
[1748620105398,0.17017524,105680.0,105670.0,0.04926616]
[1748620105819,0.17017524,105680.0,105670.0,0.04926581]
[1748620106656,0.17017524,105680.0,105670.0,0.04926685]
[1748620106869,0.17017524,105680.0,105670.0,0.04926692]
[1748620107698,0.17017524,105680.0,105670.0,0.04927031]
[1748620107932,0.17017524,105680.0,105670.0,0.04927048]
[1748620108332,0.17017524,105680.0,105670.0,0.03168889]
[1748620108531,0.17017524,105680.0,105670.0,0.04927812]
[1748620110200,0.17017524,105680.0,105670.0,0.03168889]
[1748620110414,0.17017524,105680.0,105670.0,0.04928636]
[1748620110642,0.17017524,105680.0,105670.0,0.14033964]
[1748620111079,0.17017524,105680.0,105670.0,0.14033844]
[1748620111298,0.17017524,105680.0,105670.0,0.14033757]
[1748620111519,0.17017524,105680.0,105670.0,0.12274284]
[1748620111741,0.17017524,105680.0,105670.0,0.14033612]
[1748620112455,0.16817524,105680.0,105670.0,0.14033612]
[1748620112899,0.17017524,105680.0,105670.0,0.14033612]
[1748620113566,0.17017524,105680.0,105670.0,0.14033039]
[1748620113786,0.17017524,105680.0,105670.0,0.14033048]
[1748620114006,0.17017524,105680.0,105670.0,0.14033047]
[1748620114665,0.17017524,105680.0,105670.0,0.1403299]
[1748620115337,0.16969524,105680.0,105670.0,0.14032765]
[1748620115555,0.16969524,105680.0,105670.0,0.12274284]
[1748620115776,0.16969524,105680.0,105670.0,0.14032575]
[1748620116055,0.16969524,105680.0,105670.0,0.14032455]
[1748620117615,0.16969524,105680.0,105670.0,0.14032604]
[1748620118476,0.16969524,105680.0,105670.0,0.12274284]
[1748620118702,0.16969524,105680.0,105670.0,0.14032714]
[1748620118916,0.16969524,105680.0,105670.0,0.14032723]
[1748620119381,0.16969524,105680.0,105670.0,0.12274284]
[1748620119609,0.16969524,105680.0,105670.0,0.1403294]
[1748620119889,0.16969524,105680.0,105670.0,0.15487025]
[1748620120106,0.16969524,105680.0,105670.0,0.15486798]
[1748620120371,0.002,105680.0,105670.0,2.81389864]
[1748620120647,1.01892013,105700.0,105690.0,1.04420323]
[1748620120893,0.98838059,105700.0,105690.0,2.00589584]
[1748620121158,0.98838059,105700.0,105690.0,2.00589211]
[1748620121406,1.00730178,105700.0,105690.0,1.90909024]
[1748620121853,1.00730178,105700.0,105690.0,1.93346153]
[1748620122080,1.00730178,105700.0,105690.0,1.95225554]
[1748620122302,0.99784114,105700.0,105690.0,1.95225554]
[1748620122493,1.00830178,105700.0,105690.0,2.02268916]
[1748620123469,1.19751653,105700.0,105690.0,2.02863516]
[1748620123734,1.1880566,105700.0,105690.0,1.24007054]
[1748620123954,1.18805713,105700.0,105690.0,1.23874127]
[1748620124196,1.17859667,105700.0,105690.0,1.25189759]
[1748620124431,1.16913612,105700.0,105690.0,1.11556055]
[1748620124641,1.16913612,105700.0,105690.0,0.19324845]
[1748620124856,1.16913612,105700.0,105690.0,0.61618254]
[1748620125352,1.16913612,105700.0,105690.0,0.54970795]
[1748620125561,1.16913612,105700.0,105690.0,0.11798885]
[1748620125775,1.16913612,105700.0,105690.0,0.11798962]
[1748620126429,1.16913612,105700.0,105690.0,0.10044795]
[1748620126658,1.16913612,105700.0,105690.0,0.11799179]
[1748620127394,1.16913612,105700.0,105690.0,0.11798888]
[1748620127610,1.16913612,105700.0,105690.0,0.11799188]
[1748620128058,1.12913612,105700.0,105690.0,0.01754393]
[1748620128278,0.19869411,105690.0,105680.0,0.02681577]
[1748620128487,0.19869411,105690.0,105680.0,0.22703216]
[1748620128703,0.19869411,105690.0,105680.0,0.22703283]
[1748620129130,0.19869411,105690.0,105680.0,0.22703309]
[1748620130864,0.19869411,105690.0,105680.0,0.22803309]
[1748620131750,0.19869411,105690.0,105680.0,0.22803868]
[1748620132409,0.19869411,105690.0,105680.0,0.22803877]
[1748620132829,0.19869411,105690.0,105680.0,0.22803961]
[1748620133941,0.19869411,105690.0,105680.0,0.2432432]
[1748620134159,0.19869411,105690.0,105680.0,0.22568183]
[1748620134367,0.19869411,105690.0,105680.0,0.22804517]
[1748620134588,0.19869411,105690.0,105680.0,0.21304517]
[1748620134998,0.15869411,105690.0,105680.0,0.21304517]
[1748620135629,0.16815556,105690.0,105680.0,0.21304517]
[1748620136054,0.16815556,105690.0,105680.0,0.21304926]
[1748620136541,0.16815556,105690.0,105680.0,0.21305052]
[1748620136752,0.16815556,105690.0,105680.0,0.19548183]
[1748620136982,0.16815556,105690.0,105680.0,0.02783654]
[1748620137206,0.18435556,105690.0,105680.0,0.01856866]
[1748620137415,0.18435556,105690.0,105680.0,0.01857197]
[1748620137852,0.16815556,105690.0,105680.0,0.01857068]
[1748620138092,0.16815556,105690.0,105680.0,0.02704134]
[1748620138315,0.16815556,105690.0,105680.0,0.13369529]
[1748620138525,0.16815556,105690.0,105680.0,0.14879529]
[1748620139522,0.16815556,105690.0,105680.0,0.1312247]
[1748620139774,0.16815556,105690.0,105680.0,0.14879339]
[1748620140815,0.16815556,105690.0,105680.0,0.14879042]
[1748620141309,0.16815556,105690.0,105680.0,0.14879134]
[1748620141803,0.16815556,105690.0,105680.0,0.14879123]
[1748620142052,0.16815556,105690.0,105680.0,0.14879203]
[1748620143099,0.16815556,105690.0,105680.0,0.14879387]
[1748620143354,0.16815556,105690.0,105680.0,0.1312247]
[1748620143610,0.16815556,105690.0,105680.0,0.14879523]
[1748620143826,0.16815556,105690.0,105680.0,0.1312247]
[1748620144506,0.16815556,105690.0,105680.0,0.1161247]
[1748620145797,0.16815556,105690.0,105680.0,0.11809699]
[1748620146017,0.16815556,105690.0,105680.0,0.11809666]
[1748620146233,0.16815556,105690.0,105680.0,0.11809674]
[1748620146445,0.16815556,105690.0,105680.0,0.13379816]
[1748620146629,0.16815556,105690.0,105680.0,0.13379826]
[1748620146931,0.16815556,105690.0,105680.0,0.1162247]
[1748620149045,0.16815556,105690.0,105680.0,0.14880735]
[1748620149469,0.16815556,105690.0,105680.0,0.1312247]
[1748620149697,0.16815556,105690.0,105680.0,0.14880953]
[1748620149909,0.16815556,105690.0,105680.0,0.14880948]
[1748620150332,0.16815556,105690.0,105680.0,0.1312247]
[1748620150536,0.16815556,105690.0,105680.0,0.2412247]
[1748620151648,0.16815556,105690.0,105680.0,0.2262247]
[1748620151863,0.16815556,105690.0,105680.0,0.24380888]
[1748620152079,0.16815556,105690.0,105680.0,0.22810888]
[1748620152325,0.18315556,105690.0,105680.0,0.2105247]
[1748620152775,0.18315556,105690.0,105680.0,0.2281138]
[1748620153041,0.16815556,105690.0,105680.0,0.2281138]
[1748620153703,0.18475556,105690.0,105680.0,0.2281138]
[1748620153909,0.18475556,105690.0,105680.0,0.22812672]
[1748620154356,0.18475556,105690.0,105680.0,0.12760291]
[1748620154567,0.20025556,105690.0,105680.0,0.12760627]
[1748620154774,0.20025556,105690.0,105680.0,0.1276158]
[1748620154985,0.20025556,105690.0,105680.0,0.0176158]
[1748620155415,0.2143129,105680.0,105670.0,0.1155204]
[1748620155621,0.2143129,105680.0,105670.0,0.21296736]
[1748620155829,0.1987129,105680.0,105670.0,0.21296736]
[1748620156045,0.1987129,105680.0,105670.0,0.21296739]
[1748620156252,0.1987129,105680.0,105670.0,0.21296703]
[1748620156892,0.1987129,105680.0,105670.0,0.21296857]
[1748620157113,0.1587129,105680.0,105670.0,0.21296857]
[1748620157355,0.1587129,105680.0,105670.0,0.2129717]
[1748620157563,0.1587129,105680.0,105670.0,0.21397382]
[1748620157564,0.16817524,105680.0,105670.0,0.21397382]
[1748620157766,0.16817524,105680.0,105670.0,0.19634844]
[1748620157985,0.16817524,105680.0,105670.0,0.21397492]
[1748620158188,0.16817524,105680.0,105670.0,0.21397508]
[1748620158399,0.16817524,105680.0,105670.0,0.21397289]
[1748620158900,0.16817524,105680.0,105670.0,0.19634844]
[1748620159099,0.16817524,105680.0,105670.0,0.21397295]
[1748620159353,0.16817524,105680.0,105670.0,0.19634844]
[1748620159791,0.18477524,105680.0,105670.0,0.21397304]
[1748620160003,0.16817524,105680.0,105670.0,0.21397455]
[1748620160427,0.16817524,105680.0,105670.0,0.23037064]
[1748620160674,0.16817524,105680.0,105670.0,0.24637064]
[1748620161102,0.16817524,105680.0,105670.0,0.2463723]
[1748620161313,0.16817524,105680.0,105670.0,0.24637233]
[1748620161521,0.16817524,105680.0,105670.0,0.24637334]
[1748620161732,0.16817524,105680.0,105670.0,0.24637487]
[1748620161976,0.16817524,105680.0,105670.0,0.24637471]
[1748620162185,0.16817524,105680.0,105670.0,0.24637472]
[1748620162409,0.16817524,105680.0,105670.0,0.22874844]
[1748620162628,0.16817524,105680.0,105670.0,0.23037547]
[1748620162843,0.16817524,105680.0,105670.0,0.21397411]
[1748620163276,0.16817524,105680.0,105670.0,0.20472851]
[1748620163701,0.16817524,105680.0,105670.0,0.20472619]
[1748620163906,0.16817524,105680.0,105670.0,0.20472628]
[1748620164115,0.12817524,105680.0,105670.0,0.20472628]
[1748620164321,0.12817524,105680.0,105670.0,0.20372557]
[1748620164539,0.12817524,105680.0,105670.0,0.21962575]
[1748620164749,0.12817524,105680.0,105670.0,0.2356249]
[1748620164977,0.12817524,105680.0,105670.0,0.21800284]
[1748620165183,0.12817524,105680.0,105670.0,0.23562477]
[1748620165857,0.12817524,105680.0,105670.0,0.21800284]
[1748620166069,0.12817524,105680.0,105670.0,0.23562548]
[1748620166275,0.12817524,105680.0,105670.0,0.23562579]
[1748620166488,0.12817524,105680.0,105670.0,0.21800284]
[1748620166706,0.12817524,105680.0,105670.0,0.23562654]
[1748620167353,0.12817524,105680.0,105670.0,0.23562551]
[1748620167563,0.12817524,105680.0,105670.0,0.23562539]
[1748620167766,0.12817524,105680.0,105670.0,0.2356254]
[1748620168435,0.12817524,105680.0,105670.0,0.21800284]
[1748620168642,0.12817524,105680.0,105670.0,0.23562383]
[1748620168869,0.12817524,105680.0,105670.0,0.23562358]
[1748620169074,0.12817524,105680.0,105670.0,0.23562377]
[1748620170153,0.12817524,105680.0,105670.0,0.23562694]
[1748620170794,0.12817524,105680.0,105670.0,0.21800284]
[1748620170978,0.12817524,105680.0,105670.0,0.2356272]
[1748620171411,0.08817524,105680.0,105670.0,0.20200284]
[1748620171579,0.08817524,105680.0,105670.0,0.21962773]
[1748620171792,0.08817524,105680.0,105670.0,0.20200284]
[1748620171996,0.08817524,105680.0,105670.0,0.21962974]
[1748620172202,0.08817524,105680.0,105670.0,0.20200284]
[1748620172686,0.08817524,105680.0,105670.0,0.20373338]
[1748620173427,0.10447524,105680.0,105670.0,0.20373338]
[1748620173650,0.08817524,105680.0,105670.0,0.20373338]
[1748620173847,0.08817524,105680.0,105670.0,0.21943431]
[1748620174266,0.08817524,105680.0,105670.0,0.23593431]
[1748620174667,0.08817524,105680.0,105670.0,0.20373431]
[1748620175078,0.08817524,105680.0,105670.0,0.2037349]
[1748620175284,0.08817524,105680.0,105670.0,0.20373486]
[1748620175940,0.08817524,105680.0,105670.0,0.20373488]
[1748620176951,0.08817524,105680.0,105670.0,0.20373613]
[1748620177109,0.08817524,105680.0,105670.0,0.20373635]
[1748620177652,0.08817524,105680.0,105670.0,0.20373634]
[1748620178204,0.08817524,105680.0,105670.0,0.20373682]
[1748620178404,0.04817524,105680.0,105670.0,0.20373682]
[1748620178629,0.06387524,105680.0,105670.0,0.20373694]
[1748620179260,0.07937524,105680.0,105670.0,0.12872407]
[1748620179466,0.37765524,105680.0,105670.0,0.01872407]
[1748620179696,0.46870919,105680.0,105670.0,0.00108889]
[1748620180606,0.46870919,105680.0,105670.0,8.889e-05]
[1748620181738,0.80870919,105680.0,105670.0,8.889e-05]
[1748620181961,0.90266919,105680.0,105670.0,8.889e-05]
[1748620183554,0.91399298,105680.0,105670.0,8.889e-05]
[1748620184227,0.90266919,105680.0,105670.0,8.889e-05]
[1748620185112,1.39056919,105680.0,105670.0,8.889e-05]
[1748620185346,0.99832919,105680.0,105670.0,8.889e-05]
[1748620185580,1.39032919,105680.0,105670.0,8.889e-05]
[1748620187604,1.09208919,105680.0,105670.0,8.889e-05]
[1748620188024,1.39032919,105680.0,105670.0,8.889e-05]
[1748620189573,0.98282919,105680.0,105670.0,8.889e-05]
[1748620189956,0.49492919,105680.0,105670.0,8.889e-05]
[1748620190298,0.04817524,105680.0,105670.0,8.889e-05]
[1748620191673,0.04817524,105680.0,105670.0,0.01648889]
[1748620191870,0.04817524,105680.0,105670.0,0.03178889]
[1748620194457,0.04817524,105680.0,105670.0,0.01648889]
[1748620194636,0.04817524,105680.0,105670.0,8.889e-05]
[1748620196889,0.04817524,105680.0,105670.0,0.01638889]
[1748620197091,0.04817524,105680.0,105670.0,0.03238889]
[1748620199173,0.04817524,105680.0,105670.0,8.889e-05]
[1748620199910,0.04817524,105680.0,105670.0,0.01548889]
[1748620200907,0.04817524,105680.0,105670.0,0.03188889]
[1748620205092,0.04817524,105680.0,105670.0,0.12294284]
[1748620207051,0.01892459,105680.0,105670.0,1.31664026]
[1748620207264,0.21763758,105680.0,105670.0,1.32610332]
[1748620207471,0.21763758,105680.0,105670.0,1.81979029]
[1748620207684,0.02838702,105680.0,105670.0,1.81979029]
[1748620207911,0.02838702,105680.0,105670.0,1.82925308]
[1748620208124,0.02838561,105680.0,105670.0,2.21896651]
[1748620208350,0.03784795,105680.0,105670.0,2.21896651]
[1748620208557,0.04731038,105680.0,105670.0,1.96821851]
[1748620209254,0.04731038,105680.0,105670.0,1.96921851]
[1748620210128,0.04731038,105680.0,105670.0,1.97121851]
[1748620210581,0.03784866,105680.0,105670.0,1.97121851]
[1748620211023,0.23656174,105680.0,105670.0,1.97121851]
[1748620211230,0.23656174,105680.0,105670.0,1.96175572]
[1748620211483,0.23656174,105680.0,105670.0,1.9712186]
[1748620211707,0.22709993,105680.0,105670.0,1.9712186]
[1748620211946,0.22709993,105680.0,105670.0,2.2683186]
[1748620212198,0.03784937,105680.0,105670.0,2.27778139]
[1748620212450,0.01892389,105680.0,105670.0,2.27778139]
[1748620213318,0.03784857,105680.0,105670.0,2.27778139]
[1748620213525,0.22709913,105680.0,105670.0,2.27778139]
[1748620213732,0.02838614,105680.0,105670.0,2.27778139]
[1748620214142,0.03784848,105680.0,105670.0,2.27778139]
[1748620214350,0.02838614,105680.0,105670.0,2.18402139]
[1748620214553,0.20817524,105680.0,105670.0,1.18622369]
[1748620214766,0.20817524,105680.0,105670.0,1.57786369]
[1748620215845,0.20817524,105680.0,105670.0,1.77659558]
[1748620216067,0.20817524,105680.0,105670.0,1.78605891]
[1748620216486,0.19871299,105680.0,105670.0,1.78605891]
[1748620217640,0.15871299,105680.0,105670.0,1.49842215]
[1748620217856,0.0189246,105680.0,105670.0,2.05454953]
[1748620218064,0.02838606,105680.0,105670.0,2.66598353]
[1748620218480,0.02838606,105680.0,105670.0,2.63108153]
[1748620218903,1.10921475,105700.0,105690.0,0.57527351]
[1748620219118,1.10921475,105700.0,105690.0,1.40569633]
[1748620219320,1.10921475,105700.0,105690.0,0.8684948]